[Event "*** Titled Tuesday Blitz"]
[Site "Chess.com"]
[Date "2021.02.02"]
[Round "1"]
[White "GadimbayliA"]
[Black "oneshot007"]
[Result "1-0"]
[WhiteElo "2910"]
[BlackElo "2463"]
[TimeControl "180+1"]
[EndTime "10:06:56 PST"]
[Termination "GadimbayliA won by resignation"]

1. e4 {[%clk 0:03:00.9]} 1... c5 {[%clk 0:02:59.7]} 2. Nf3 {[%clk 0:03:00]} 2...
Nc6 {[%clk 0:03:00.1]} 3. Bb5 {[%clk 0:02:59.8]} 3... g6 {[%clk 0:03:00.3]} 4.
Bxc6 {[%clk 0:02:59.4]} 4... bxc6 {[%clk 0:03:01.2]} 5. d4 {[%clk 0:02:59.6]}
5... cxd4 {[%clk 0:03:02.1]} 6. Qxd4 {[%clk 0:03:00.5]} 6... f6 {[%clk
0:03:02.6]} 7. O-O {[%clk 0:02:59.7]} 7... Bg7 {[%clk 0:02:58.9]} 8. Qa4 {[%clk
0:03:00.1]} 8... Nh6 {[%clk 0:02:53.6]} 9. c4 {[%clk 0:03:00.2]} 9... Nf7 {[%clk
0:02:53.5]} 10. Nc3 {[%clk 0:03:00.3]} 10... O-O {[%clk 0:02:52.5]} 11. Be3
{[%clk 0:03:00.8]} 11... Qc7 {[%clk 0:02:46.1]} 12. Rfd1 {[%clk 0:02:59.5]}
12... d6 {[%clk 0:02:46.3]} 13. c5 {[%clk 0:02:59.4]} 13... f5 {[%clk
0:02:41.6]} 14. cxd6 {[%clk 0:02:55.6]} 14... exd6 {[%clk 0:02:41.6]} 15. Rac1
{[%clk 0:02:55.9]} 15... Rb8 {[%clk 0:02:31.5]} 16. Nd5 {[%clk 0:02:50.1]} 16...
Qb7 {[%clk 0:02:16.4]} 17. Qxc6 {[%clk 0:02:49.8]} 17... Qxc6 {[%clk 0:02:12.2]}
18. Rxc6 {[%clk 0:02:50.7]} 18... fxe4 {[%clk 0:02:10.6]} 19. Nd2 {[%clk
0:02:43.2]} 19... Bb7 {[%clk 0:02:10.8]} 20. Ne7+ {[%clk 0:02:39.2]} 20... Kh8
{[%clk 0:02:11.2]} 21. Rc7 {[%clk 0:02:37.7]} 21... Ba8 {[%clk 0:01:59]} 22. b3
{[%clk 0:02:33.7]} 22... d5 {[%clk 0:01:51.1]} 23. Nf1 {[%clk 0:02:10.8]} 23...
Rbd8 {[%clk 0:01:32.4]} 24. Bd4 {[%clk 0:01:56.6]} 24... Ne5 {[%clk 0:01:32.2]}
25. Ne3 {[%clk 0:01:51.1]} 25... Rf7 {[%clk 0:01:22.4]} 26. Bxe5 {[%clk
0:01:50.7]} 26... Bxe5 {[%clk 0:01:19.6]} 27. Nxg6+ {[%clk 0:01:50.9]} 27...
hxg6 {[%clk 0:01:16.9]} 28. Rxf7 {[%clk 0:01:51.8]} 28... d4 {[%clk 0:01:17.1]}
29. Nc4 {[%clk 0:01:51.2]} 29... Bg7 {[%clk 0:01:13.5]} 30. Rxa7 {[%clk
0:01:50.7]} 30... d3 {[%clk 0:01:10.8]} 31. Nb6 {[%clk 0:01:44.6]} 31... Bc6
{[%clk 0:01:10.3]} 32. Rc7 {[%clk 0:01:44.5]} 32... Bb5 {[%clk 0:01:01.8]} 33.
a4 {[%clk 0:01:44.4]} 33... Ba6 {[%clk 0:01:02.1]} 34. b4 {[%clk 0:01:33.2]}
34... Bd4 {[%clk 0:00:50]} 35. Nc4 {[%clk 0:01:02.1]} 35... Rf8 {[%clk
0:00:49.1]} 36. Ne3 {[%clk 0:01:02.1]} 36... Bc8 {[%clk 0:00:40]} 37. Rc4 {[%clk
0:00:52.1]} 37... Bxe3 {[%clk 0:00:37.6]} 38. fxe3 {[%clk 0:00:53]} 38... Bg4
{[%clk 0:00:38.1]} 39. Rd2 {[%clk 0:00:52.1]} 39... Be2 {[%clk 0:00:37.4]} 40.
Rc1 {[%clk 0:00:42.3]} 40... Kg7 {[%clk 0:00:37.4]} 41. b5 {[%clk 0:00:42]}
41... Kf6 {[%clk 0:00:37.5]} 42. b6 {[%clk 0:00:41.5]} 42... Ke5 {[%clk
0:00:34.8]} 43. a5 {[%clk 0:00:40]} 43... Kd6 {[%clk 0:00:30.7]} 44. b7 {[%clk
0:00:39.5]} 44... Rb8 {[%clk 0:00:24.8]} 45. a6 {[%clk 0:00:39.4]} 1-0

[Event "*** Titled Tuesday Blitz"]
[Site "Chess.com"]
[Date "2021.02.02"]
[Round "1"]
[White "chessmadara"]
[Black "verdest"]
[Result "1/2-1/2"]
[WhiteElo "2142"]
[BlackElo "2503"]
[TimeControl "180+1"]
[EndTime "10:06:56 PST"]
[Termination "Game drawn by repetition"]

1. e4 {[%clk 0:03:00.8]} 1... c5 {[%clk 0:02:59]} 2. Nf3 {[%clk 0:03:00.1]} 2...
Nc6 {[%clk 0:02:58]} 3. d4 {[%clk 0:03:00.1]} 3... cxd4 {[%clk 0:02:58.1]} 4.
Nxd4 {[%clk 0:03:01]} 4... e5 {[%clk 0:02:58.4]} 5. Nb5 {[%clk 0:02:56.1]} 5...
d6 {[%clk 0:02:57.9]} 6. c4 {[%clk 0:02:50.4]} 6... Be6 {[%clk 0:02:55]} 7. N1c3
{[%clk 0:02:48.1]} 7... a6 {[%clk 0:02:53.9]} 8. Na3 {[%clk 0:02:47.4]} 8... g6
{[%clk 0:02:50.5]} 9. Nc2 {[%clk 0:02:39.4]} 9... Bg7 {[%clk 0:02:49.8]} 10. Be3
{[%clk 0:02:38]} 10... Nf6 {[%clk 0:02:48.5]} 11. Be2 {[%clk 0:02:37.1]} 11...
O-O {[%clk 0:02:46.8]} 12. O-O {[%clk 0:02:36.4]} 12... Rc8 {[%clk 0:02:45.4]}
13. Qd2 {[%clk 0:02:13.5]} 13... Na5 {[%clk 0:02:30.6]} 14. b3 {[%clk
0:02:11.8]} 14... b5 {[%clk 0:02:30.2]} 15. cxb5 {[%clk 0:02:11.5]} 15... Rxc3
{[%clk 0:02:28.3]} 16. Qxc3 {[%clk 0:02:10.8]} 16... Nxe4 {[%clk 0:02:26.8]} 17.
Qd3 {[%clk 0:01:59.7]} 17... Bf5 {[%clk 0:02:15.2]} 18. g4 {[%clk 0:01:46.5]}
18... Nc5 {[%clk 0:02:06.4]} 19. Qd2 {[%clk 0:01:45.3]} 19... Ne4 {[%clk
0:01:54.8]} 20. Qb4 {[%clk 0:01:43.9]} 20... Nf6 {[%clk 0:00:34.9]} 21. gxf5
{[%clk 0:01:40.3]} 21... gxf5 {[%clk 0:00:35.8]} 22. Bg5 {[%clk 0:01:31.3]}
22... e4 {[%clk 0:00:30.5]} 23. Ne3 {[%clk 0:01:14.8]} 23... h6 {[%clk 0:00:25]}
24. Bh4 {[%clk 0:01:13.4]} 24... f4 {[%clk 0:00:21.7]} 25. Nc4 {[%clk
0:00:57.8]} 25... Nxc4 {[%clk 0:00:20.6]} 26. Bxc4 {[%clk 0:00:57.7]} 26... d5
{[%clk 0:00:21.1]} 27. Rad1 {[%clk 0:00:46.8]} 27... Qd7 {[%clk 0:00:20]} 28.
Kh1 {[%clk 0:00:19]} 28... Qh3 {[%clk 0:00:16.4]} 29. Bxf6 {[%clk 0:00:15.9]}
29... Qf3+ {[%clk 0:00:15.8]} 30. Kg1 {[%clk 0:00:16.2]} 30... Qg4+ {[%clk
0:00:15]} 31. Kh1 {[%clk 0:00:16.4]} 31... Qf3+ {[%clk 0:00:15.2]} 32. Kg1
{[%clk 0:00:16.7]} 32... Qg4+ {[%clk 0:00:15.3]} 33. Kh1 {[%clk 0:00:17]} 33...
Qf3+ {[%clk 0:00:16.2]} 1/2-1/2

[Event "*** Titled Tuesday Blitz"]
[Site "Chess.com"]
[Date "2021.02.02"]
[Round "1"]
[White "AwareIdea"]
[Black "Azerichess"]
[Result "0-1"]
[WhiteElo "2473"]
[BlackElo "3008"]
[TimeControl "180+1"]
[EndTime "10:06:59 PST"]
[Termination "Azerichess won by resignation"]

1. d4 {[%clk 0:02:59.8]} 1... d5 {[%clk 0:02:43.3]} 2. Bf4 {[%clk 0:02:59.5]}
2... Nf6 {[%clk 0:02:42]} 3. e3 {[%clk 0:02:59.5]} 3... c5 {[%clk 0:02:39]} 4.
c3 {[%clk 0:02:59.3]} 4... e6 {[%clk 0:02:38.8]} 5. Nd2 {[%clk 0:02:59.4]} 5...
Nc6 {[%clk 0:02:38.9]} 6. Ngf3 {[%clk 0:02:59.1]} 6... h6 {[%clk 0:02:33.5]} 7.
h3 {[%clk 0:02:58]} 7... Bd6 {[%clk 0:02:25.2]} 8. Bxd6 {[%clk 0:02:54.6]} 8...
Qxd6 {[%clk 0:02:23.5]} 9. Bd3 {[%clk 0:02:55.5]} 9... O-O {[%clk 0:02:22.6]}
10. O-O {[%clk 0:02:55.3]} 10... Rd8 {[%clk 0:02:17.5]} 11. Re1 {[%clk
0:02:55.1]} 11... b6 {[%clk 0:02:08.2]} 12. e4 {[%clk 0:02:51.4]} 12... dxe4
{[%clk 0:02:06]} 13. Nxe4 {[%clk 0:02:52.3]} 13... Nxe4 {[%clk 0:02:06.3]} 14.
Bxe4 {[%clk 0:02:53.2]} 14... Bb7 {[%clk 0:02:06.4]} 15. dxc5 {[%clk 0:02:49.3]}
15... Qxc5 {[%clk 0:02:05.3]} 16. Qe2 {[%clk 0:02:48.3]} 16... Rd6 {[%clk
0:01:57.2]} 17. Rad1 {[%clk 0:02:47.6]} 17... Rad8 {[%clk 0:01:57.3]} 18. Rxd6
{[%clk 0:02:46.8]} 18... Qxd6 {[%clk 0:01:58.2]} 19. a3 {[%clk 0:02:45.4]} 19...
Rd7 {[%clk 0:01:51.3]} 20. Bxc6 {[%clk 0:02:42.8]} 20... Qxc6 {[%clk 0:01:50.3]}
21. Rd1 {[%clk 0:02:40.8]} 21... f6 {[%clk 0:01:42.9]} 22. Rxd7 {[%clk
0:02:39.9]} 22... Qxd7 {[%clk 0:01:43.8]} 23. Nd4 {[%clk 0:02:36.2]} 23... e5
{[%clk 0:01:39.7]} 24. Nc2 {[%clk 0:02:34.3]} 24... Kf7 {[%clk 0:01:37.7]} 25.
f3 {[%clk 0:02:34.6]} 25... Qd5 {[%clk 0:01:34.1]} 26. Ne3 {[%clk 0:02:33.9]}
26... Qd7 {[%clk 0:01:33.9]} 27. Kf2 {[%clk 0:02:33.4]} 27... b5 {[%clk
0:01:32.4]} 28. c4 {[%clk 0:02:31.2]} 28... a6 {[%clk 0:01:30.8]} 29. cxb5
{[%clk 0:02:29]} 29... axb5 {[%clk 0:01:31.7]} 30. Qc2 {[%clk 0:02:28.6]} 30...
g6 {[%clk 0:01:29.6]} 31. b3 {[%clk 0:02:28]} 31... Kg7 {[%clk 0:01:29.5]} 32.
a4 {[%clk 0:02:27.6]} 32... bxa4 {[%clk 0:01:28.8]} 33. bxa4 {[%clk 0:02:28.5]}
33... f5 {[%clk 0:01:23.1]} 34. a5 {[%clk 0:02:27.9]} 34... f4 {[%clk
0:01:20.9]} 35. Ng4 {[%clk 0:01:51.9]} 35... h5 {[%clk 0:01:16.2]} 36. Qc3
{[%clk 0:01:39.3]} 36... hxg4 {[%clk 0:01:11.4]} 37. Qxe5+ {[%clk 0:01:39.2]}
37... Kh7 {[%clk 0:01:11.5]} 38. hxg4 {[%clk 0:01:36.1]} 38... Qd2+ {[%clk
0:01:11]} 39. Kg1 {[%clk 0:01:32.4]} 39... Qe3+ {[%clk 0:01:10.4]} 40. Qxe3
{[%clk 0:01:32.4]} 40... fxe3 {[%clk 0:01:11.3]} 41. Kf1 {[%clk 0:01:32.6]}
41... Ba6+ {[%clk 0:01:09.9]} 42. Ke1 {[%clk 0:01:33]} 42... Kg7 {[%clk
0:01:07.2]} 43. g3 {[%clk 0:01:33.2]} 43... Kf6 {[%clk 0:01:06.9]} 44. f4 {[%clk
0:01:31.3]} 44... Ke6 {[%clk 0:01:07.3]} 45. Kd1 {[%clk 0:01:31.4]} 45... Kd5
{[%clk 0:00:34.4]} 46. f5 {[%clk 0:01:27.9]} 46... Ke5 {[%clk 0:00:25.3]} 47.
fxg6 {[%clk 0:00:53.9]} 47... Kf6 {[%clk 0:00:24.7]} 48. g5+ {[%clk 0:00:54.1]}
48... Kxg6 {[%clk 0:00:24.5]} 49. Ke1 {[%clk 0:00:55]} 49... Kxg5 {[%clk
0:00:24.9]} 50. g4 {[%clk 0:00:54.9]} 50... Kxg4 {[%clk 0:00:25.4]} 51. Kd1
{[%clk 0:00:55.8]} 51... Kf4 {[%clk 0:00:25.6]} 52. Ke1 {[%clk 0:00:56.7]} 52...
Kf3 {[%clk 0:00:26.2]} 0-1

[Event "*** Titled Tuesday Blitz"]
[Site "Chess.com"]
[Date "2021.02.02"]
[Round "1"]
[White "Vusatiuk_Vladimir"]
[Black "cassoulet"]
[Result "0-1"]
[WhiteElo "2399"]
[BlackElo "2757"]
[TimeControl "180+1"]
[EndTime "10:06:59 PST"]
[Termination "cassoulet won by resignation"]

1. d4 {[%clk 0:02:57.9]} 1... Nf6 {[%clk 0:02:55]} 2. c4 {[%clk 0:02:56.6]} 2...
g6 {[%clk 0:02:54.6]} 3. Nc3 {[%clk 0:02:56.9]} 3... d5 {[%clk 0:02:55.2]} 4.
cxd5 {[%clk 0:02:57.1]} 4... Nxd5 {[%clk 0:02:56.1]} 5. Bd2 {[%clk 0:02:57.7]}
5... Bg7 {[%clk 0:02:55.5]} 6. e4 {[%clk 0:02:58]} 6... Nf6 {[%clk 0:02:55.7]}
7. Be3 {[%clk 0:02:51.5]} 7... O-O {[%clk 0:02:54.7]} 8. h3 {[%clk 0:02:50.8]}
8... c5 {[%clk 0:02:53.8]} 9. Nf3 {[%clk 0:02:50.2]} 9... Qa5 {[%clk 0:02:50.3]}
10. Bd3 {[%clk 0:02:41.2]} 10... Nc6 {[%clk 0:02:50.1]} 11. O-O {[%clk
0:02:39.9]} 11... cxd4 {[%clk 0:02:50]} 12. Nxd4 {[%clk 0:02:40.1]} 12... Nxd4
{[%clk 0:02:50.2]} 13. Bxd4 {[%clk 0:02:41]} 13... Rd8 {[%clk 0:02:50.3]} 14.
Be3 {[%clk 0:02:28.6]} 14... Be6 {[%clk 0:02:49.3]} 15. Qe2 {[%clk 0:02:24.6]}
15... a6 {[%clk 0:02:45.6]} 16. a3 {[%clk 0:02:18.5]} 16... Rac8 {[%clk
0:02:44.5]} 17. Rac1 {[%clk 0:02:18.1]} 17... b5 {[%clk 0:02:44.1]} 18. Rfd1
{[%clk 0:01:56.6]} 18... Bb3 {[%clk 0:02:36]} 19. Bc2 {[%clk 0:01:56.5]} 19...
Bc4 {[%clk 0:02:36]} 20. Bd3 {[%clk 0:01:56.4]} 20... Bb3 {[%clk 0:02:16.5]} 21.
Bc2 {[%clk 0:01:56.2]} 21... Bxc2 {[%clk 0:02:16.5]} 22. Rxd8+ {[%clk 0:01:50]}
22... Qxd8 {[%clk 0:02:08.4]} 23. Qxc2 {[%clk 0:01:43.3]} 23... e6 {[%clk
0:02:08.7]} 24. Qd2 {[%clk 0:01:35.6]} 24... Qxd2 {[%clk 0:02:03.8]} 25. Bxd2
{[%clk 0:01:36.5]} 25... Nd7 {[%clk 0:02:03.6]} 26. Ne2 {[%clk 0:01:24.1]} 26...
Rxc1+ {[%clk 0:01:56.6]} 27. Bxc1 {[%clk 0:01:25]} 27... Nc5 {[%clk 0:01:56]}
28. Kf1 {[%clk 0:00:48.8]} 28... Nxe4 {[%clk 0:01:51.4]} 29. Ke1 {[%clk
0:00:47.8]} 29... Kf8 {[%clk 0:01:50.8]} 30. b3 {[%clk 0:00:45]} 30... Nc5
{[%clk 0:01:49.7]} 31. b4 {[%clk 0:00:43.3]} 31... Nd3+ {[%clk 0:01:47.1]} 32.
Kd2 {[%clk 0:00:42.5]} 32... Nxf2 {[%clk 0:01:47.1]} 33. Ke3 {[%clk 0:00:38.6]}
33... Nd1+ {[%clk 0:01:41.9]} 34. Kd2 {[%clk 0:00:36.9]} 34... Nb2 {[%clk
0:01:42]} 35. Nc3 {[%clk 0:00:31.2]} 35... Nc4+ {[%clk 0:01:39.8]} 36. Kd3
{[%clk 0:00:30.1]} 36... f5 {[%clk 0:01:39.4]} 37. Ne2 {[%clk 0:00:24.8]} 37...
Ke7 {[%clk 0:01:39.1]} 38. a4 {[%clk 0:00:25.4]} 38... e5 {[%clk 0:01:38.3]} 39.
axb5 {[%clk 0:00:25.6]} 39... axb5 {[%clk 0:01:39.2]} 40. g4 {[%clk 0:00:26.4]}
40... e4+ {[%clk 0:01:39.2]} 41. Kc2 {[%clk 0:00:25.9]} 41... Nd6 {[%clk
0:01:36.4]} 42. Bg5+ {[%clk 0:00:20.2]} 42... Ke6 {[%clk 0:01:36.3]} 43. Be3
{[%clk 0:00:17.7]} 43... Be5 {[%clk 0:01:36]} 44. h4 {[%clk 0:00:14.9]} 44...
Kd5 {[%clk 0:01:34.3]} 45. gxf5 {[%clk 0:00:13.6]} 45... Nxf5 {[%clk 0:01:32.8]}
46. Bg5 {[%clk 0:00:13.8]} 46... Nd4+ {[%clk 0:01:31.9]} 47. Kd2 {[%clk
0:00:12.4]} 47... Nxe2 {[%clk 0:01:31]} 48. Kxe2 {[%clk 0:00:13.3]} 48... Bc3
{[%clk 0:01:31.3]} 49. Be7 {[%clk 0:00:13.3]} 49... Kc4 {[%clk 0:01:30.8]} 50.
Ke3 {[%clk 0:00:13.9]} 50... Bxb4 {[%clk 0:01:30.9]} 51. Bf6 {[%clk 0:00:14.5]}
51... Bc3 {[%clk 0:01:29.9]} 52. Bg5 {[%clk 0:00:14.5]} 52... b4 {[%clk
0:01:29.8]} 53. Kxe4 {[%clk 0:00:15.4]} 53... b3 {[%clk 0:01:30.1]} 54. Bc1
{[%clk 0:00:16.3]} 54... b2 {[%clk 0:01:30.6]} 55. Bxb2 {[%clk 0:00:16.8]} 55...
Bxb2 {[%clk 0:01:31.5]} 56. Kf4 {[%clk 0:00:16.6]} 56... Bc1+ {[%clk 0:01:31.3]}
57. Ke5 {[%clk 0:00:16.9]} 57... Kd3 {[%clk 0:01:28.6]} 58. Kf6 {[%clk
0:00:16.6]} 58... Ke4 {[%clk 0:01:29]} 59. Kg7 {[%clk 0:00:17.1]} 59... Kf5
{[%clk 0:01:27.2]} 60. Kxh7 {[%clk 0:00:16.6]} 60... Bf4 {[%clk 0:01:27.3]} 61.
Kg7 {[%clk 0:00:16.5]} 61... Bg3 {[%clk 0:01:27]} 62. Kh6 {[%clk 0:00:12.4]}
62... Bxh4 {[%clk 0:01:26.5]} 63. Kg7 {[%clk 0:00:13.3]} 63... Bg5 {[%clk
0:01:24.3]} 0-1

[Event "*** Titled Tuesday Blitz"]
[Site "Chess.com"]
[Date "2021.02.02"]
[Round "1"]
[White "andy_rekt"]
[Black "Berardino"]
[Result "0-1"]
[WhiteElo "2247"]
[BlackElo "2559"]
[TimeControl "180+1"]
[EndTime "10:07:00 PST"]
[Termination "Berardino won on time"]

1. d4 {[%clk 0:03:00.9]} 1... d5 {[%clk 0:02:39.9]} 2. c4 {[%clk 0:03:00.1]}
2... e6 {[%clk 0:02:39.6]} 3. Nc3 {[%clk 0:02:59.3]} 3... Be7 {[%clk 0:02:38.7]}
4. Nf3 {[%clk 0:02:59.8]} 4... Nf6 {[%clk 0:02:38.3]} 5. Bf4 {[%clk 0:02:59.8]}
5... O-O {[%clk 0:02:37.6]} 6. e3 {[%clk 0:02:55.3]} 6... b6 {[%clk 0:02:37]} 7.
Rc1 {[%clk 0:02:46.1]} 7... Bb7 {[%clk 0:02:31.2]} 8. cxd5 {[%clk 0:02:44.3]}
8... Nxd5 {[%clk 0:02:30.4]} 9. Nxd5 {[%clk 0:02:44]} 9... Qxd5 {[%clk 0:02:30]}
10. a3 {[%clk 0:02:39.5]} 10... c5 {[%clk 0:02:26.7]} 11. dxc5 {[%clk
0:02:13.9]} 11... Qxd1+ {[%clk 0:02:14.4]} 12. Rxd1 {[%clk 0:02:12.4]} 12...
Bxc5 {[%clk 0:02:14.7]} 13. b4 {[%clk 0:02:10.2]} 13... Be7 {[%clk 0:02:13.3]}
14. Be2 {[%clk 0:01:34.1]} 14... a5 {[%clk 0:02:13.6]} 15. Bd6 {[%clk 0:01:23]}
15... Bxd6 {[%clk 0:02:10.3]} 16. Rxd6 {[%clk 0:01:23]} 16... axb4 {[%clk
0:02:10.6]} 17. axb4 {[%clk 0:01:23]} 17... Nc6 {[%clk 0:01:45]} 18. b5 {[%clk
0:01:02.9]} 18... Ra1+ {[%clk 0:01:44.1]} 19. Bd1 {[%clk 0:01:01.6]} 19... Na5
{[%clk 0:01:28.6]} 20. O-O {[%clk 0:00:25.9]} 20... Nc4 {[%clk 0:01:27.9]} 21.
Rd7 {[%clk 0:00:24.9]} 21... Bd5 {[%clk 0:01:16.8]} 22. Bc2 {[%clk 0:00:18.7]}
22... Ra2 {[%clk 0:01:13.3]} 23. Bd3 {[%clk 0:00:12.3]} 23... Nd2 {[%clk
0:00:44.1]} 24. Nxd2 {[%clk 0:00:11.1]} 24... Rxd2 {[%clk 0:00:45]} 25. Bb1
{[%clk 0:00:09.1]} 25... Rb2 {[%clk 0:00:30.6]} 26. Bd3 {[%clk 0:00:05.6]} 26...
f5 {[%clk 0:00:21.1]} 27. f3 {[%clk 0:00:04.9]} 27... Ra8 {[%clk 0:00:17.8]} 28.
Rf2 {[%clk 0:00:03.1]} 28... Ra1+ {[%clk 0:00:16.7]} 29. Bf1 {[%clk 0:00:03.3]}
29... Rbb1 {[%clk 0:00:16.8]} 30. Rb7 {[%clk 0:00:02.5]} 30... Bc4 {[%clk
0:00:16.7]} 0-1

[Event "*** Titled Tuesday Blitz"]
[Site "Chess.com"]
[Date "2021.02.02"]
[Round "1"]
[White "AttilaTurzo"]
[Black "politeplayer"]
[Result "1-0"]
[WhiteElo "2526"]
[BlackElo "2200"]
[TimeControl "180+1"]
[EndTime "10:07:00 PST"]
[Termination "AttilaTurzo won on time"]

1. d4 {[%clk 0:02:59.4]} 1... Nf6 {[%clk 0:02:56.4]} 2. Nf3 {[%clk 0:02:58.7]}
2... d5 {[%clk 0:02:54]} 3. Bf4 {[%clk 0:02:57.8]} 3... e6 {[%clk 0:02:53.4]} 4.
e3 {[%clk 0:02:57.7]} 4... Bd6 {[%clk 0:02:52.7]} 5. Bg3 {[%clk 0:02:58.3]} 5...
c5 {[%clk 0:02:50.5]} 6. Nbd2 {[%clk 0:02:56.4]} 6... Nc6 {[%clk 0:02:47.1]} 7.
c3 {[%clk 0:02:55.9]} 7... b6 {[%clk 0:02:46]} 8. Bd3 {[%clk 0:02:54.3]} 8...
Bb7 {[%clk 0:02:44.3]} 9. Qe2 {[%clk 0:02:54.9]} 9... O-O {[%clk 0:02:39]} 10.
Rd1 {[%clk 0:02:55.3]} 10... Re8 {[%clk 0:02:24.4]} 11. Ne5 {[%clk 0:02:49.6]}
11... Qc7 {[%clk 0:02:20]} 12. f4 {[%clk 0:02:47.3]} 12... Ne7 {[%clk
0:02:09.3]} 13. O-O {[%clk 0:02:45.9]} 13... Nf5 {[%clk 0:02:02.2]} 14. Kh1
{[%clk 0:02:20.2]} 14... Nxg3+ {[%clk 0:01:54.7]} 15. hxg3 {[%clk 0:02:21.1]}
15... Ne4 {[%clk 0:01:50.7]} 16. Nxe4 {[%clk 0:02:18.8]} 16... dxe4 {[%clk
0:01:50.4]} 17. Bb5 {[%clk 0:02:10.3]} 17... Red8 {[%clk 0:01:38.9]} 18. a4
{[%clk 0:02:05.6]} 18... a6 {[%clk 0:01:36.9]} 19. Bc4 {[%clk 0:02:05.2]} 19...
Bc6 {[%clk 0:01:15]} 20. Kg1 {[%clk 0:01:55.8]} 20... Bxa4 {[%clk 0:01:13.2]}
21. Ra1 {[%clk 0:01:54.6]} 21... b5 {[%clk 0:01:06.1]} 22. Ba2 {[%clk
0:01:53.7]} 22... b4 {[%clk 0:00:50.5]} 23. Bxe6 {[%clk 0:01:47.8]} 23... fxe6
{[%clk 0:00:50.4]} 24. Rxa4 {[%clk 0:01:46.7]} 24... bxc3 {[%clk 0:00:50.1]} 25.
bxc3 {[%clk 0:01:46.2]} 25... cxd4 {[%clk 0:00:44]} 26. cxd4 {[%clk 0:01:47.1]}
26... a5 {[%clk 0:00:34.7]} 27. Nc4 {[%clk 0:01:40]} 27... Bb4 {[%clk
0:00:33.1]} 28. Ne5 {[%clk 0:01:34]} 28... Rac8 {[%clk 0:00:32.1]} 29. Ra2
{[%clk 0:01:29.7]} 29... Qc3 {[%clk 0:00:28.5]} 30. Kh2 {[%clk 0:01:24.3]} 30...
Rf8 {[%clk 0:00:25.4]} 31. Qg4 {[%clk 0:01:23.3]} 31... Rf6 {[%clk 0:00:24.7]}
32. Qe2 {[%clk 0:01:18]} 32... Rh6+ {[%clk 0:00:22.7]} 33. Kg1 {[%clk
0:01:18.2]} 33... Rd8 {[%clk 0:00:22.2]} 34. Rc2 {[%clk 0:01:13.5]} 34... Qa3
{[%clk 0:00:17.5]} 35. Nc6 {[%clk 0:01:04.9]} 35... Re8 {[%clk 0:00:14]} 36. Ne5
{[%clk 0:00:59.5]} 36... Bc3 {[%clk 0:00:10.9]} 37. Qc4 {[%clk 0:00:54.6]} 37...
Bb4 {[%clk 0:00:09.2]} 38. Kf2 {[%clk 0:00:52.3]} 38... Rf6 {[%clk 0:00:07.6]}
39. Rfc1 {[%clk 0:00:44.1]} 39... h6 {[%clk 0:00:05.9]} 40. Ra2 {[%clk
0:00:43.8]} 1-0

[Event "*** Titled Tuesday Blitz"]
[Site "Chess.com"]
[Date "2021.02.02"]
[Round "1"]
[White "karinachess1"]
[Black "Chess2Hawks"]
[Result "1-0"]
[WhiteElo "2481"]
[BlackElo "1824"]
[TimeControl "180+1"]
[EndTime "10:07:01 PST"]
[Termination "karinachess1 won on time"]

1. Nf3 {[%clk 0:03:00.9]} 1... Nf6 {[%clk 0:02:57]} 2. c4 {[%clk 0:03:00.8]}
2... e6 {[%clk 0:02:54]} 3. Nc3 {[%clk 0:03:00.3]} 3... d5 {[%clk 0:02:52.4]} 4.
e3 {[%clk 0:02:59.2]} 4... Be7 {[%clk 0:02:47.4]} 5. b3 {[%clk 0:02:55.3]} 5...
O-O {[%clk 0:02:45.4]} 6. Bb2 {[%clk 0:02:55.4]} 6... c5 {[%clk 0:02:42.7]} 7.
cxd5 {[%clk 0:02:55.5]} 7... exd5 {[%clk 0:02:38]} 8. d4 {[%clk 0:02:54.9]} 8...
b6 {[%clk 0:02:34.6]} 9. Be2 {[%clk 0:02:43.9]} 9... Bb7 {[%clk 0:02:30.4]} 10.
O-O {[%clk 0:02:43.2]} 10... Nc6 {[%clk 0:02:23]} 11. dxc5 {[%clk 0:02:23.2]}
11... bxc5 {[%clk 0:02:21.6]} 12. Na4 {[%clk 0:02:22.8]} 12... Ne4 {[%clk
0:02:07.7]} 13. Rc1 {[%clk 0:02:20]} 13... Rc8 {[%clk 0:01:37.8]} 14. Nd2 {[%clk
0:02:15.5]} 14... Qa5 {[%clk 0:01:28.3]} 15. Nxe4 {[%clk 0:01:58.6]} 15... dxe4
{[%clk 0:01:29.2]} 16. a3 {[%clk 0:01:25.6]} 16... Rfd8 {[%clk 0:01:06.6]} 17.
Qe1 {[%clk 0:01:19.4]} 17... Qxe1 {[%clk 0:01:01.9]} 18. Rfxe1 {[%clk
0:01:20.3]} 18... Rd2 {[%clk 0:00:58.7]} 19. Bc3 {[%clk 0:01:15]} 19... Ra2
{[%clk 0:00:55.1]} 20. Ra1 {[%clk 0:01:04.4]} 20... Rxa1 {[%clk 0:00:52.5]} 21.
Rxa1 {[%clk 0:01:04.7]} 21... Rd8 {[%clk 0:00:41.6]} 22. Kf1 {[%clk 0:00:54.4]}
22... Bc8 {[%clk 0:00:33.3]} 23. Bc4 {[%clk 0:00:52.4]} 23... Bd6 {[%clk
0:00:15.2]} 24. h3 {[%clk 0:00:48.8]} 24... Kf8 {[%clk 0:00:14.6]} 25. Ke2
{[%clk 0:00:47.7]} 25... Ne5 {[%clk 0:00:14.1]} 26. Bxe5 {[%clk 0:00:34.9]}
26... Bxe5 {[%clk 0:00:15]} 27. Rc1 {[%clk 0:00:33.8]} 27... Bd6 {[%clk
0:00:09.1]} 28. Rd1 {[%clk 0:00:29.1]} 28... Ke7 {[%clk 0:00:08.7]} 29. Nc3
{[%clk 0:00:28.4]} 29... Be6 {[%clk 0:00:07]} 30. Nxe4 {[%clk 0:00:26]} 30...
Bxc4+ {[%clk 0:00:05.5]} 31. bxc4 {[%clk 0:00:26.9]} 31... Rd7 {[%clk
0:00:01.5]} 32. Rxd6 {[%clk 0:00:22.9]} 1-0